[Event "50th Ciudad Sevilla 2024"]
[Site "Sevilla"]
[Date "2025.01.11"]
[Round "2.10"]
[White "Alquist, Erik"]
[Black "Ilinca, Felix-Antonio"]
[Result "0-1"]
[Annotator "RC"]
[ECO "B89"]
[WhiteElo "2026"]
[BlackElo "2440"]
[PlyCount "106"]
[EventDate "2025.01.10"]
[EventType "swiss"]
[EventCountry "ESP"]
[SourceTitle "playchess.com"]
[Source "ChessBase"]
[SourceQuality "1"]
[TimeControl "90+30"]

1. e4 {[%emt 0:00:00]} c5 {[%emt 0:00:00]} 2. Nf3 {[%emt 0:00:00]} d6 {[%emt 0:00:00]} 3. d4 {[%emt 0:00:00]} cxd4 {[%emt 0:00:00]} 4. Nxd4 {[%emt 0:00:00]} Nf6 {[%emt 0:00:00]} 5. Nc3 {[%emt 0:00:00]} Nc6 {[%emt 0:00:00]} 6. Bc4 {[%emt 0:00:00]} e6 {[%emt 0:00:00]} 7. Be3 {[%emt 0:00:00]} Bd7 {[%emt 0:00:00]} 8. Qe2 {[%emt 0:00:00]} a6 {[%emt 0:00:00]} 9. Bb3 {[%emt 0:00:00]} Na5 {[%emt 0:00:00]} 10. O-O {[%emt 0:00:00]} Nxb3 {[%emt 0:00:00]} 11. cxb3 {[%emt 0:00:00]} Be7 {[%emt 0:00:00]} 12. f4 {[%emt 0:00:00]} O-O {[%emt 0:00:00]} 13. e5 {[%emt 0:00:00]} dxe5 {[%emt 0:00:00]} 14. fxe5 {[%emt 0:00:00]} Nd5 {[%emt 0:00:00]} 15. Nxd5 {[%emt 0:00:00]} exd5 {[%emt 0:00:00]} 16. Rac1 {[%emt 0:00:00]} Rc8 {[%emt 0:00:00]} 17. a3 {[%emt 0:00:00]} Rxc1 {[%emt 0:00:00]} 18. Rxc1 {[%emt 0:00:00]} Re8 {[%emt 0:00:00]} 19. Qf3 {[%emt 0:00:00]} Be6 {[%emt 0:00:00]} 20. b4 {[%emt 0:00:00]} Qd7 {[%emt 0:00:00]} 21. h3 {[%emt 0:00:00]} h6 {[%emt 0:00:00]} 22. Qg3 {[%emt 0:00:00]} Kh7 {[%emt 0:00:00]} 23. Qf2 {[%emt 0:00:00]} Rf8 {[%emt 0:00:00]} 24. Rc3 {[%emt 0:00:00]} Bd8 {[%emt 0:00:00]} 25. Nb3 {[%emt 0:00:00]} f6 {[%emt 0:00:00]} 26. Nc5 {[%emt 0:00:00]} Qe8 {[%emt 0:00:00]} 27. Qc2+ {[%emt 0:00:00]} Kh8 {[%emt 0:00:00]} 28. Bd4 {[%emt 0:00:00]} fxe5 {[%emt 0:00:00]} 29. Bxe5 {[%emt 0:00:00]} Bf5 {[%emt 0:00:00]} 30. Qe2 {[%emt 0:00:00]} Bf6 {[%emt 0:00:00]} 31. Re3 {[%emt 0:00:00]} d4 {[%emt 0:00:00]} 32. Bxf6 {[%emt 0:00:00]} Qxe3+ {[%emt 0:00:00]} 33. Qxe3 {[%emt 0:00:00]} dxe3 {[%emt 0:00:00]} 34. Bd4 {[%emt 0:00:00]} e2 {[%emt 0:00:00]} 35. Bf2 {[%emt 0:00:00]} b6 {[%emt 0:00:00]} 36. Nb3 {[%emt 0:00:00]} Bd3 {[%emt 0:00:00]} 37. Nd2 {[%emt 0:00:00]} b5 {[%emt 0:00:00]} 38. g3 {[%emt 0:00:00]} g5 {[%emt 0:00:00]} 39. Kg2 {[%emt 0:00:00]} h5 {[%emt 0:00:00]} 40. Kg1 {[%emt 0:00:00]} g4 {[%emt 0:00:00]} 41. hxg4 {[%emt 0:00:00]} hxg4 {[%emt 0:00:00]} 42. Kg2 {[%emt 0:00:00]} Kg7 {[%emt 0:00:00]} 43. Bd4+ {[%emt 0:00:00]} Kg6 {[%emt 0:00:00]} 44. Bf2 {[%emt 0:00:06]} Kf5 {[%emt 0:00:00]} 45. Be1 {[%emt 0:00:52]} Ke6 {[%emt 0:00:00]} 46. Bf2 {[%emt 0:00:25]} Kd5 {[%emt 0:00:00]} 47. Kg1 {[%emt 0:00:35]} Rf7 {[%emt 0:00:00]} 48. Kg2 {[%emt 0:00:36]} Be4+ {[%emt 0:00:00]} 49. Kg1 {[%emt 0:00:27]} Rh7 {[%emt 0:00:00]} 50. Be1 {[%emt 0:00:55]} Rh1+ {[%emt 0:00:00]} 51. Kf2 {[%emt 0:00:05]} Bf3 {[%emt 0:00:00]} 52. b3 {[%emt 0:03:35]} Kd4 {[%emt 0:00:00]} 53. a4 {[%emt 0:00:17]} Ke5 {[%emt 0:00:00]} 0-1

[Event "50th Ciudad Sevilla 2024"]
[Site "Sevilla"]
[Date "2025.01.11"]
[Round "2.11"]
[White "Druska, Juraj"]
[Black "Hermosin Bustos, Manuel"]
[Result "1-0"]
[Annotator "RC"]
[ECO "B33"]
[WhiteElo "2438"]
[BlackElo "2017"]
[PlyCount "93"]
[EventDate "2025.01.10"]
[EventType "swiss"]
[EventCountry "ESP"]
[SourceTitle "playchess.com"]
[Source "ChessBase"]
[SourceQuality "1"]
[TimeControl "90+30"]

1. e4 {[%emt 0:00:00]} c5 {[%emt 0:00:00]} 2. Nf3 {[%emt 0:00:00]} Nc6 {[%emt 0:00:00]} 3. d4 {[%emt 0:00:00]} cxd4 {[%emt 0:00:00]} 4. Nxd4 {[%emt 0:00:00]} Nf6 {[%emt 0:00:00]} 5. Nc3 {[%emt 0:00:00]} e5 {[%emt 0:00:00]} 6. Ndb5 {[%emt 0:00:00]} d6 {[%emt 0:00:00]} 7. Bg5 {[%emt 0:00:00]} a6 {[%emt 0:00:00]} 8. Na3 {[%emt 0:00:00]} b5 {[%emt 0:00:00]} 9. Nd5 {[%emt 0:00:00]} Be7 {[%emt 0:00:00]} 10. Bxf6 {[%emt 0:00:00]} Bxf6 {[%emt 0:00:00]} 11. c3 {[%emt 0:00:00]} O-O {[%emt 0:00:00]} 12. Nc2 {[%emt 0:00:00]} Rb8 {[%emt 0:00:00]} 13. Be2 {[%emt 0:00:00]} Bg5 {[%emt 0:00:00]} 14. O-O {[%emt 0:00:00]} f5 {[%emt 0:00:00]} 15. exf5 {[%emt 0:00:00]} Bxf5 {[%emt 0:00:00]} 16. Ncb4 {[%emt 0:00:00]} Nxb4 {[%emt 0:00:00]} 17. Nxb4 {[%emt 0:00:00]} Be4 {[%emt 0:00:00]} 18. Nxa6 {[%emt 0:00:00]} Rb6 {[%emt 0:00:00]} 19. Nb4 {[%emt 0:00:00]} Bf4 {[%emt 0:00:00]} 20. Nd5 {[%emt 0:00:00]} Rb7 {[%emt 0:00:00]} 21. g3 {[%emt 0:00:00]} Bg5 {[%emt 0:00:00]} 22. f3 {[%emt 0:00:00]} Bf5 {[%emt 0:00:00]} 23. Bd3 {[%emt 0:00:00]} Be6 {[%emt 0:00:00]} 24. Be4 {[%emt 0:00:00]} Rbf7 {[%emt 0:00:00]} 25. Qd3 {[%emt 0:00:00]} Bf5 {[%emt 0:00:00]} 26. Qxb5 {[%emt 0:00:00]} h5 {[%emt 0:00:00]} 27. Qd3 {[%emt 0:00:00]} h4 {[%emt 0:00:00]} 28. g4 {[%emt 0:00:00]} Be6 {[%emt 0:00:00]} 29. h3 {[%emt 0:00:00]} Qb8 {[%emt 0:00:00]} 30. Rf2 {[%emt 0:00:00]} Kh8 {[%emt 0:00:00]} 31. a4 {[%emt 0:00:00]} Bf4 {[%emt 0:00:00]} 32. a5 {[%emt 0:00:00]} Bg3 {[%emt 0:00:00]} 33. Re2 {[%emt 0:00:00]} Bd7 {[%emt 0:00:00]} 34. b4 {[%emt 0:00:00]} Bb5 {[%emt 0:00:00]} 35. c4 {[%emt 0:00:00]} Bc6 {[%emt 0:00:00]} 36. b5 {[%emt 0:00:00]} Bxd5 {[%emt 0:00:46]} 37. Qxd5 {[%emt 0:00:00]} Qd8 {[%emt 0:00:50]} 38. c5 {[%emt 0:00:49]} Qg5 {[%emt 0:00:41]} 39. cxd6 {[%emt 0:00:23]} Bf4 {[%emt 0:00:26]} 40. Rae1 {[%emt 0:07:44]} Bg3 {[%emt 0:02:25]} 41. Rd1 {[%emt 0:01:04]} Bf4 {[%emt 0:00:41]} 42. d7 {[%emt 0:00:28]} Be3+ {[%emt 0:00:38]} 43. Kh1 {[%emt 0:00:09]} Bd4 {[%emt 0:06:59]} 44. Rxd4 {[%emt 0:01:15]} Qf4 {[%emt 0:00:26]} 45. d8=Q {[%emt 0:02:31]} Qg3 {[%emt 0:01:09]} 46. Qxe5 {[%emt 0:00:16]} Qxh3+ {[%emt 0:00:46]} 47. Kg1 {[%emt 0:00:14]} 1-0

[Event "50th Ciudad Sevilla 2024"]
[Site "Sevilla"]
[Date "2025.01.11"]
[Round "2.12"]
[White "Alvarez Poves, Jesus"]
[Black "Marin, Mihail"]
[Result "0-1"]
[Annotator "RC"]
[ECO "B89"]
[WhiteElo "2012"]
[BlackElo "2431"]
[PlyCount "52"]
[EventDate "2025.01.10"]
[EventType "swiss"]
[EventCountry "ESP"]
[SourceTitle "playchess.com"]
[Source "ChessBase"]
[SourceQuality "1"]
[TimeControl "90+30"]

1. e4 {[%emt 0:00:00]} c5 {[%emt 0:00:00]} 2. Nf3 {[%emt 0:00:00]} e6 {[%emt 0:00:00]} 3. d4 {[%emt 0:00:00]} cxd4 {[%emt 0:00:00]} 4. Nxd4 {[%emt 0:00:00]} Nc6 {[%emt 0:00:00]} 5. Nc3 {[%emt 0:00:00]} d6 {[%emt 0:00:00]} 6. Be3 {[%emt 0:00:00]} Nf6 {[%emt 0:00:00]} 7. Bc4 {[%emt 0:00:00]} Bd7 {[%emt 0:00:00]} 8. Qe2 {[%emt 0:00:00]} a6 {[%emt 0:00:00]} 9. a4 {[%emt 0:00:00]} Be7 {[%emt 0:00:00]} 10. Nxc6 {[%emt 0:00:00]} Bxc6 {[%emt 0:00:00]} 11. a5 {[%emt 0:00:00]} Nd7 {[%emt 0:00:00]} 12. O-O {[%emt 0:00:00]} O-O {[%emt 0:00:00]} 13. Rfd1 {[%emt 0:00:00]} Qc7 {[%emt 0:00:00]} 14. f4 {[%emt 0:00:00]} Rac8 {[%emt 0:00:00]} 15. Bb3 {[%emt 0:00:00]} Nc5 {[%emt 0:00:00]} 16. Bxc5 {[%emt 0:00:00]} dxc5 {[%emt 0:00:00]} 17. e5 {[%emt 0:00:00]} c4 {[%emt 0:00:00]} 18. Bxc4 {[%emt 0:00:00]} b5 {[%emt 0:00:00]} 19. Bd3 {[%emt 0:00:00]} f5 {[%emt 0:00:00]} 20. Kh1 {[%emt 0:03:18]} g5 {[%emt 0:00:00]} 21. fxg5 {[%emt 0:01:45]} Bxg5 {[%emt 0:00:00]} 22. Rf1 {[%emt 0:01:25]} Kh8 {[%emt 0:00:00]} 23. Rf2 {[%emt 0:01:40]} Rg8 {[%emt 0:00:00]} 24. Qh5 {[%emt 0:02:39]} Rg6 {[%emt 0:00:00]} 25. Bf1 {[%emt 0:02:10]} Be3 {[%emt 0:00:00]} 26. Re2 {[%emt 0:00:34]} Rh6 {[%emt 0:00:00]} 0-1

[Event "50th Ciudad Sevilla 2024"]
[Site "Sevilla"]
[Date "2025.01.11"]
[Round "2.13"]
[White "Xu, Minghui"]
[Black "Bech, Havard Eriksen"]
[Result "1-0"]
[Annotator "RC"]
[ECO "C50"]
[WhiteElo "2428"]
[BlackElo "2010"]
[PlyCount "63"]
[EventDate "2025.01.10"]
[EventType "swiss"]
[EventCountry "ESP"]
[SourceTitle "playchess.com"]
[Source "ChessBase"]
[SourceQuality "1"]
[TimeControl "90+30"]

1. e4 {[%emt 0:00:00]} e5 {[%emt 0:00:00]} 2. Nf3 {[%emt 0:00:00]} Nc6 {[%emt 0:00:00]} 3. Bc4 {[%emt 0:00:00]} Nf6 {[%emt 0:00:00]} 4. d3 {[%emt 0:00:00]} Bc5 {[%emt 0:00:00]} 5. O-O {[%emt 0:00:00]} d6 {[%emt 0:00:00]} 6. a4 {[%emt 0:00:00]} a6 {[%emt 0:00:00]} 7. c3 {[%emt 0:00:00]} Ba7 {[%emt 0:00:00]} 8. Bg5 {[%emt 0:00:00]} h6 {[%emt 0:00:00]} 9. Bh4 {[%emt 0:00:00]} g5 {[%emt 0:00:00]} 10. Bg3 {[%emt 0:00:00]} O-O {[%emt 0:00:00]} 11. Nbd2 {[%emt 0:00:00]} Be6 {[%emt 0:00:00]} 12. b4 {[%emt 0:00:00]} Ne7 {[%emt 0:00:00]} 13. b5 {[%emt 0:00:00]} Qc8 {[%emt 0:00:00]} 14. Rb1 {[%emt 0:00:00]} Ng6 {[%emt 0:00:00]} 15. Bxe6 {[%emt 0:00:00]} fxe6 {[%emt 0:00:00]} 16. Nc4 {[%emt 0:00:00]} Nd7 {[%emt 0:00:00]} 17. d4 {[%emt 0:00:00]} exd4 {[%emt 0:00:00]} 18. cxd4 {[%emt 0:00:00]} Nf4 {[%emt 0:00:00]} 19. h4 {[%emt 0:00:00]} Qd8 {[%emt 0:00:02]} 20. hxg5 {[%emt 0:00:00]} hxg5 {[%emt 0:00:13]} 21. a5 {[%emt 0:00:00]} d5 {[%emt 0:02:07]} 22. exd5 {[%emt 0:00:00]} exd5 {[%emt 0:00:10]} 23. Nce5 {[%emt 0:00:00]} Nxe5 {[%emt 0:01:51]} 24. dxe5 {[%emt 0:00:00]} Nh5 {[%emt 0:02:36]} 25. Bh2 {[%emt 0:00:00]} axb5 {[%emt 0:04:02]} 26. Qd3 {[%emt 0:00:28]} Kg7 {[%emt 0:03:19]} 27. Rxb5 {[%emt 0:01:48]} Qe7 {[%emt 0:00:34]} 28. Rxd5 {[%emt 0:00:59]} Rad8 {[%emt 0:00:21]} 29. e6 {[%emt 0:01:05]} Rxd5 {[%emt 0:00:44]} 30. Qxd5 {[%emt 0:00:07]} g4 {[%emt 0:00:24]} 31. Qxh5 {[%emt 0:00:25]} gxf3 {[%emt 0:00:07]} 32. Be5+ {[%emt 0:00:05]} 1-0

[Event "50th Ciudad Sevilla 2024"]
[Site "Sevilla"]
[Date "2025.01.11"]
[Round "2.16"]
[White "Ataide Molina, Jose Maria"]
[Black "Isanzhulov, Arystan"]
[Result "0-1"]
[Annotator "RC"]
[ECO "D01"]
[WhiteElo "2005"]
[BlackElo "2397"]
[PlyCount "76"]
[EventDate "2025.01.10"]
[EventType "swiss"]
[EventCountry "ESP"]
[SourceTitle "playchess.com"]
[Source "ChessBase"]
[SourceQuality "1"]
[TimeControl "90+30"]

1. d4 {[%emt 0:00:00]} Nf6 {[%emt 0:00:00]} 2. Bf4 {[%emt 0:00:00]} g6 {[%emt 0:00:00]} 3. Nc3 {[%emt 0:00:00]} d5 {[%emt 0:00:00]} 4. e3 {[%emt 0:00:00]} Nh5 {[%emt 0:00:00]} 5. Bg5 {[%emt 0:00:00]} c6 {[%emt 0:00:00]} 6. Be2 {[%emt 0:00:00]} h6 {[%emt 0:00:00]} 7. Bh4 {[%emt 0:00:00]} Ng7 {[%emt 0:00:00]} 8. Bg3 {[%emt 0:00:00]} Nd7 {[%emt 0:00:00]} 9. h3 {[%emt 0:00:00]} Nf5 {[%emt 0:00:00]} 10. Bh2 {[%emt 0:00:00]} Nh4 {[%emt 0:00:00]} 11. Nf3 {[%emt 0:00:00]} Nxf3+ {[%emt 0:00:00]} 12. Bxf3 {[%emt 0:00:00]} Bg7 {[%emt 0:00:00]} 13. O-O {[%emt 0:00:00]} O-O {[%emt 0:00:00]} 14. Qd2 {[%emt 0:00:00]} e5 {[%emt 0:00:00]} 15. dxe5 {[%emt 0:00:00]} Nxe5 {[%emt 0:00:00]} 16. Be2 {[%emt 0:00:00]} Nc4 {[%emt 0:00:00]} 17. Bxc4 {[%emt 0:00:00]} dxc4 {[%emt 0:00:00]} 18. Rfd1 {[%emt 0:00:00]} Qb6 {[%emt 0:00:00]} 19. Rab1 {[%emt 0:00:00]} Be6 {[%emt 0:00:00]} 20. Na4 {[%emt 0:00:00]} Qb5 {[%emt 0:00:00]} 21. Nc3 {[%emt 0:00:00]} Qa5 {[%emt 0:00:00]} 22. a3 {[%emt 0:00:00]} Rad8 {[%emt 0:00:00]} 23. Qe1 {[%emt 0:00:00]} b5 {[%emt 0:00:00]} 24. Bd6 {[%emt 0:00:00]} Rfe8 {[%emt 0:00:00]} 25. Bb4 {[%emt 0:00:00]} Qc7 {[%emt 0:00:00]} 26. Ne2 {[%emt 0:00:00]} Bf5 {[%emt 0:00:00]} 27. Rxd8 {[%emt 0:00:00]} Qxd8 {[%emt 0:00:00]} 28. Rd1 {[%emt 0:00:00]} Qg5 {[%emt 0:00:00]} 29. f4 {[%emt 0:00:00]} Qf6 {[%emt 0:00:00]} 30. Nd4 {[%emt 0:03:15]} Be4 {[%emt 0:00:00]} 31. Qf2 {[%emt 0:01:02]} g5 {[%emt 0:00:00]} 32. g3 {[%emt 0:02:03]} gxf4 {[%emt 0:00:00]} 33. gxf4 {[%emt 0:00:09]} c5 {[%emt 0:00:00]} 34. Bxc5 {[%emt 0:01:30]} Qg6+ {[%emt 0:00:00]} 35. Kh2 {[%emt 0:00:24]} Qh5 {[%emt 0:00:00]} 36. Rg1 {[%emt 0:01:56]} Qxc5 {[%emt 0:00:00]} 37. Qg3 {[%emt 0:01:28]} Bg6 {[%emt 0:00:00]} 38. f5 {[%emt 0:01:21]} Be5 {[%emt 0:00:00]} 0-1

[Event "50th Ciudad Sevilla 2024"]
[Site "Sevilla"]
[Date "2025.01.11"]
[Round "2.17"]
[White "Matamoros Franco, Carlos S."]
[Black "Auvray, Honorine"]
[Result "1-0"]
[Annotator "RC"]
[ECO "A37"]
[WhiteElo "2394"]
[BlackElo "1998"]
[PlyCount "59"]
[EventDate "2025.01.10"]
[EventType "swiss"]
[EventCountry "ESP"]
[SourceTitle "playchess.com"]
[Source "ChessBase"]
[SourceQuality "1"]
[TimeControl "90+30"]

1. Nf3 {[%emt 0:00:00]} c5 {[%emt 0:00:00]} 2. c4 {[%emt 0:00:00]} g6 {[%emt 0:00:00]} 3. Nc3 {[%emt 0:00:00]} Bg7 {[%emt 0:00:00]} 4. g3 {[%emt 0:00:00]} Nc6 {[%emt 0:00:00]} 5. Bg2 {[%emt 0:00:00]} e6 {[%emt 0:00:00]} 6. h4 {[%emt 0:00:00]} h6 {[%emt 0:00:00]} 7. e3 {[%emt 0:00:00]} Nge7 {[%emt 0:00:00]} 8. d4 {[%emt 0:00:00]} cxd4 {[%emt 0:00:00]} 9. Nxd4 {[%emt 0:00:00]} Nxd4 {[%emt 0:00:00]} 10. exd4 {[%emt 0:00:00]} d5 {[%emt 0:00:00]} 11. cxd5 {[%emt 0:00:00]} exd5 {[%emt 0:00:00]} 12. O-O {[%emt 0:00:00]} O-O {[%emt 0:00:00]} 13. Qb3 {[%emt 0:00:00]} Nc6 {[%emt 0:00:00]} 14. Be3 {[%emt 0:00:00]} Nxd4 {[%emt 0:00:00]} 15. Bxd4 {[%emt 0:00:00]} Bxd4 {[%emt 0:00:00]} 16. Nxd5 {[%emt 0:00:00]} Be6 {[%emt 0:00:00]} 17. Rad1 {[%emt 0:00:00]} Bxd5 {[%emt 0:00:00]} 18. Bxd5 {[%emt 0:00:00]} Qf6 {[%emt 0:00:00]} 19. Rd3 {[%emt 0:00:00]} Bxb2 {[%emt 0:00:00]} 20. Rb1 {[%emt 0:00:00]} Be5 {[%emt 0:00:56]} 21. Rf3 {[%emt 0:00:00]} Qg7 {[%emt 0:00:32]} 22. Re1 {[%emt 0:00:00]} Bf6 {[%emt 0:03:07]} 23. Qxb7 {[%emt 0:00:00]} Rad8 {[%emt 0:01:23]} 24. Bb3 {[%emt 0:00:00]} Bd4 {[%emt 0:02:08]} 25. Re7 {[%emt 0:00:00]} Bf6 {[%emt 0:00:19]} 26. Rc7 {[%emt 0:00:00]} Rd6 {[%emt 0:02:55]} 27. Qxa7 {[%emt 0:00:00]} g5 {[%emt 0:00:20]} 28. Qc5 {[%emt 0:00:00]} Ra6 {[%emt 0:01:07]} 29. Rxf7 {[%emt 0:00:00]} Rxf7 {[%emt 0:00:57]} 30. Qc8+ {[%emt 0:00:00]} 1-0

[Event "50th Ciudad Sevilla 2024"]
[Site "Sevilla"]
[Date "2025.01.11"]
[Round "2.18"]
[White "Philippe, Denis-Emmanuel"]
[Black "Lin, Yingrui"]
[Result "0-1"]
[Annotator "ChessBase"]
[ECO "A46"]
[WhiteElo "1999"]
[BlackElo "2393"]
[PlyCount "82"]
[EventDate "2025.01.10"]
[EventType "swiss"]
[EventCountry "ESP"]
[SourceTitle "playchess.com"]
[Source "ChessBase"]
[SourceQuality "1"]
[TimeControl "90+30"]

1. d4 {[%emt 0:00:00]} Nf6 {[%emt 0:00:00]} 2. Nf3 {[%emt 0:00:00]} e6 {[%emt 0:00:00]} 3. e3 {[%emt 0:00:00]} b6 {[%emt 0:00:00]} 4. Bd3 {[%emt 0:00:00]} Bb7 {[%emt 0:00:00]} 5. O-O {[%emt 0:00:00]} Be7 {[%emt 0:00:00]} 6. c4 {[%emt 0:00:00]} O-O {[%emt 0:00:00]} 7. Nc3 {[%emt 0:00:00]} d6 {[%emt 0:00:00]} 8. d5 {[%emt 0:00:00]} exd5 {[%emt 0:00:00]} 9. cxd5 {[%emt 0:00:00]} Nbd7 {[%emt 0:00:00]} 10. e4 {[%emt 0:00:00]} Re8 {[%emt 0:00:00]} 11. h3 {[%emt 0:00:00]} c5 {[%emt 0:00:00]} 12. Bf4 {[%emt 0:00:00]} a6 {[%emt 0:00:00]} 13. a4 {[%emt 0:00:00]} Nf8 {[%emt 0:00:00]} 14. Re1 {[%emt 0:00:00]} Ng6 {[%emt 0:00:00]} 15. Bh2 {[%emt 0:00:00]} Nd7 {[%emt 0:00:00]} 16. Qd2 {[%emt 0:00:00]} Nde5 {[%emt 0:00:00]} 17. Nxe5 {[%emt 0:00:00]} dxe5 {[%emt 0:00:00]} 18. Bc4 {[%emt 0:00:00]} Bd6 {[%emt 0:00:00]} 19. Ra3 {[%emt 0:00:00]} Ne7 {[%emt 0:00:00]} 20. Qg5 {[%emt 0:00:00]} h6 {[%emt 0:00:00]} 21. Qh5 {[%emt 0:00:00]} Nc8 {[%emt 0:00:00]} 22. Nd1 {[%emt 0:00:00]} Qg5 {[%emt 0:00:00]} 23. Qe2 {[%emt 0:00:00]} Bc7 {[%emt 0:00:00]} 24. Rg3 {[%emt 0:00:00]} Qh4 {[%emt 0:00:00]} 25. Ne3 {[%emt 0:00:00]} Nd6 {[%emt 0:00:00]} 26. Bd3 {[%emt 0:00:00]} Bc8 {[%emt 0:00:00]} 27. Nc4 {[%emt 0:00:00]} Nb7 {[%emt 0:00:00]} 28. Ne3 {[%emt 0:00:00]} Na5 {[%emt 0:00:00]} 29. Qc2 {[%emt 0:00:00]} Bd7 {[%emt 0:00:00]} 30. Rc1 {[%emt 0:00:00]} Nb7 {[%emt 0:00:00]} 31. Qe2 {[%emt 0:00:00]} Nd6 {[%emt 0:00:00]} 32. Nc4 {[%emt 0:01:18]} Bxa4 {[%emt 0:00:00]} 33. Nxd6 {[%emt 0:03:11]} Bxd6 {[%emt 0:00:00]} 34. Bxa6 {[%emt 0:01:11]} Reb8 {[%emt 0:00:00]} 35. Bd3 {[%emt 0:04:31]} Bd7 {[%emt 0:00:00]} 36. Re3 {[%emt 0:02:54]} b5 {[%emt 0:00:00]} 37. Bg3 {[%emt 0:00:17]} Qg5 {[%emt 0:00:00]} 38. Qc2 {[%emt 0:03:50]} c4 {[%emt 0:00:00]} 39. Bf1 {[%emt 0:01:28]} Bc5 {[%emt 0:00:00]} 40. Rf3 {[%emt 0:00:53]} Bd4 {[%emt 0:00:00]} 41. b3 {[%emt 0:01:43]} cxb3 {[%emt 0:00:00]} 0-1

[Event "50th Ciudad Sevilla 2024"]
[Site "Sevilla"]
[Date "2025.01.11"]
[Round "2.19"]
[White "Song, Yuxin"]
[Black "Herrera Mellado, Luis"]
[Result "1-0"]
[Annotator "RC"]
[ECO "B31"]
[WhiteElo "2384"]
[BlackElo "1994"]
[PlyCount "123"]
[EventDate "2025.01.10"]
[EventType "swiss"]
[EventCountry "ESP"]
[SourceTitle "playchess.com"]
[Source "ChessBase"]
[SourceQuality "1"]
[TimeControl "90+30"]

1. e4 {[%emt 0:00:00]} c5 {[%emt 0:00:00]} 2. Nf3 {[%emt 0:00:00]} Nc6 {[%emt 0:00:00]} 3. Bb5 {[%emt 0:00:00]} g6 {[%emt 0:00:00]} 4. Bxc6 {[%emt 0:00:00]} bxc6 {[%emt 0:00:00]} 5. d4 {[%emt 0:00:00]} Bg7 {[%emt 0:00:00]} 6. dxc5 {[%emt 0:00:00]} Qa5+ {[%emt 0:00:00]} 7. Bd2 {[%emt 0:00:00]} Qxc5 {[%emt 0:00:00]} 8. Bc3 {[%emt 0:00:00]} Bxc3+ {[%emt 0:00:00]} 9. Nxc3 {[%emt 0:00:00]} Nf6 {[%emt 0:00:00]} 10. O-O {[%emt 0:00:00]} d6 {[%emt 0:00:00]} 11. Re1 {[%emt 0:00:00]} Bg4 {[%emt 0:00:00]} 12. h3 {[%emt 0:00:00]} Bxf3 {[%emt 0:00:00]} 13. Qxf3 {[%emt 0:00:00]} O-O {[%emt 0:00:00]} 14. Rad1 {[%emt 0:00:00]} Nd7 {[%emt 0:00:00]} 15. Qg3 {[%emt 0:00:00]} Rfe8 {[%emt 0:00:00]} 16. Kh2 {[%emt 0:00:00]} e5 {[%emt 0:00:00]} 17. Rd2 {[%emt 0:00:00]} Rad8 {[%emt 0:00:00]} 18. Red1 {[%emt 0:00:00]} Nb6 {[%emt 0:00:00]} 19. b3 {[%emt 0:00:00]} Re6 {[%emt 0:00:00]} 20. a4 {[%emt 0:00:00]} a5 {[%emt 0:00:00]} 21. Na2 {[%emt 0:00:00]} Rde8 {[%emt 0:00:00]} 22. Nc1 {[%emt 0:00:00]} d5 {[%emt 0:00:00]} 23. Nd3 {[%emt 0:00:00]} Qc3 {[%emt 0:00:00]} 24. f3 {[%emt 0:00:00]} d4 {[%emt 0:01:00]} 25. Rf2 {[%emt 0:00:00]} Nd7 {[%emt 0:03:48]} 26. f4 {[%emt 0:00:00]} exf4 {[%emt 0:01:43]} 27. Qxf4 {[%emt 0:00:00]} Rf6 {[%emt 0:00:51]} 28. Qc7 {[%emt 0:00:00]} Rxf2 {[%emt 0:00:38]} 29. Qxd7 {[%emt 0:00:00]} Rxg2+ {[%emt 0:01:25]} 30. Kxg2 {[%emt 0:00:00]} Qxc2+ {[%emt 0:00:18]} 31. Nf2 {[%emt 0:00:00]} Rxe4 {[%emt 0:01:05]} 32. Qd8+ {[%emt 0:00:00]} Kg7 {[%emt 0:00:32]} 33. Rxd4 {[%emt 0:00:00]} Re2 {[%emt 0:03:39]} 34. Rf4 {[%emt 0:00:00]} Qxb3 {[%emt 0:00:44]} 35. Qf6+ {[%emt 0:00:00]} Kg8 {[%emt 0:00:55]} 36. Rd4 {[%emt 0:00:00]} Re8 {[%emt 0:00:59]} 37. Qxc6 {[%emt 0:00:00]} Qe3 {[%emt 0:01:02]} 38. Qf6 {[%emt 0:00:00]} h5 {[%emt 0:00:25]} 39. Rd8 {[%emt 0:00:00]} Qe1 {[%emt 0:01:01]} 40. Rd7 {[%emt 0:00:00]} Qe6 {[%emt 0:00:53]} 41. Qxe6 {[%emt 0:00:00]} Rxe6 {[%emt 0:00:04]} 42. Rd5 {[%emt 0:00:00]} Ra6 {[%emt 0:00:53]} 43. Ne4 {[%emt 0:00:00]} f5 {[%emt 0:00:39]} 44. Ng5 {[%emt 0:00:00]} Kg7 {[%emt 0:00:40]} 45. h4 {[%emt 0:00:00]} Kf6 {[%emt 0:00:42]} 46. Kg3 {[%emt 0:00:00]} Ra7 {[%emt 0:00:30]} 47. Kf4 {[%emt 0:00:00]} Kg7 {[%emt 0:00:33]} 48. Nf3 {[%emt 0:00:00]} Ra6 {[%emt 0:00:22]} 49. Kg5 {[%emt 0:00:00]} Kf7 {[%emt 0:00:34]} 50. Rd7+ {[%emt 0:00:00]} Ke6 {[%emt 0:00:23]} 51. Rg7 {[%emt 0:00:00]} Kd5 {[%emt 0:00:23]} 52. Rxg6 {[%emt 0:00:00]} Ra8 {[%emt 0:00:17]} 53. Kxh5 {[%emt 0:00:00]} Kc4 {[%emt 0:00:20]} 54. Rb6 {[%emt 0:00:00]} Kd3 {[%emt 0:00:51]} 55. Kg5 {[%emt 0:00:00]} Ke4 {[%emt 0:00:19]} 56. Nd2+ {[%emt 0:00:00]} Kd3 {[%emt 0:00:59]} 57. Rd6+ {[%emt 0:00:00]} Kc3 {[%emt 0:00:32]} 58. h5 {[%emt 0:00:00]} Rf8 {[%emt 0:00:19]} 59. h6 {[%emt 0:00:00]} f4 {[%emt 0:00:12]} 60. Nf3 {[%emt 0:00:00]} Kb4 {[%emt 0:00:53]} 61. Rd4+ {[%emt 0:00:00]} Kb3 {[%emt 0:00:16]} 62. h7 {[%emt 0:00:00]} 1-0

[Event "50th Ciudad Sevilla 2024"]
[Site "Sevilla"]
[Date "2025.01.11"]
[Round "2.20"]
[White "Lohia, Sohum"]
[Black "Perez Ruiz, Santiago"]
[Result "1-0"]
[Annotator "RC"]
[ECO "C12"]
[WhiteElo "2367"]
[BlackElo "1989"]
[PlyCount "51"]
[EventDate "2025.01.10"]
[EventType "swiss"]
[EventCountry "ESP"]
[SourceTitle "playchess.com"]
[Source "ChessBase"]
[SourceQuality "1"]
[TimeControl "90+30"]

1. e4 {[%emt 0:00:00]} e6 {[%emt 0:00:00]} 2. d4 {[%emt 0:00:00]} d5 {[%emt 0:00:00]} 3. Nc3 {[%emt 0:00:00]} Nf6 {[%emt 0:00:00]} 4. Bg5 {[%emt 0:00:00]} Bb4 {[%emt 0:00:00]} 5. e5 {[%emt 0:00:00]} h6 {[%emt 0:00:00]} 6. Bd2 {[%emt 0:00:00]} Nfd7 {[%emt 0:00:00]} 7. f4 {[%emt 0:00:00]} c5 {[%emt 0:00:00]} 8. a3 {[%emt 0:00:00]} Bxc3 {[%emt 0:00:00]} 9. bxc3 {[%emt 0:00:00]} Nc6 {[%emt 0:00:00]} 10. Nf3 {[%emt 0:00:00]} O-O {[%emt 0:00:00]} 11. Bd3 {[%emt 0:00:00]} c4 {[%emt 0:00:00]} 12. Be2 {[%emt 0:00:00]} f6 {[%emt 0:00:00]} 13. O-O {[%emt 0:00:00]} Nb6 {[%emt 0:00:00]} 14. Qe1 {[%emt 0:00:00]} Na4 {[%emt 0:00:00]} 15. Qg3 {[%emt 0:00:00]} Qa5 {[%emt 0:00:00]} 16. Kh1 {[%emt 0:00:00]} Bd7 {[%emt 0:00:00]} 17. f5 {[%emt 0:00:00]} Kh8 {[%emt 0:00:00]} 18. fxe6 {[%emt 0:00:00]} Bxe6 {[%emt 0:00:00]} 19. Nh4 {[%emt 0:00:00]} Rf7 {[%emt 0:00:00]} 20. Bh5 {[%emt 0:00:00]} Nxd4 {[%emt 0:00:00]} 21. Bxf7 {[%emt 0:00:00]} Bxf7 {[%emt 0:00:00]} 22. Bxh6 {[%emt 0:00:00]} Rg8 {[%emt 0:00:00]} 23. cxd4 {[%emt 0:00:00]} gxh6 {[%emt 0:00:00]} 24. Qf4 {[%emt 0:00:00]} Kh7 {[%emt 0:00:00]} 25. Qxf6 {[%emt 0:00:00]} Rg7 {[%emt 0:00:00]} 26. Nf5 {[%emt 0:00:00]} 1-0